{"text_format":"1","workbook":"xlsx","n_sheets":3,"sheets":["P19","Sheet2","Sheet3"],"not_rendered":{"charts":2,"images":13,"macros":1,"external_links":0,"defined_names":50,"comments":0,"pivot_tables":0},"unopened":[],"bounds":{"document_bytes":16777216,"sheet_cells":100000,"rows_first":2000,"rows_last":500,"rows_between":2000,"halvings":0,"cell_chars":16384,"cell_head_chars":4096},"cells_cut":0,"cells_raw":0,"read":"whole","date_system":"1900"}

{"sheet":"P19","index":0,"n_rows":104,"n_cols":34,"rows_kept":104,"cut":false,"hidden":false,"merged":[[34,8,34,9],[31,31,37,34]]}
[]
[]
[]
[]
[]
[]
["b_Nmx0",-6.5757000000000003,1.046,-8.6270000000000007,-4.5244999999999997]
["b_sm1Nmx",9.7100000000000006E-2,3.5499999999999997E-2,2.75E-2,0.16669999999999999]
["b_atNmx",2.2100000000000002E-2,2.4499999999999999E-3,1.7299999999999999E-2,2.69E-2]
["b_wsNmx",4.0899999999999999E-2,1.1900000000000001E-2,1.7600000000000001E-2,6.4100000000000004E-2]
["b_mt1Nmx",-0.156,5.1799999999999999E-2,-0.25750000000000001,-5.45E-2]
["b_mdmNmx",0.1024,9.8499999999999994E-3,8.3099999999999993E-2,0.1217]
["b_mtanNmx",-0.1888,2.6499999999999999E-2,-0.2407,-0.1368]
["b_ma0Nmx",3.5691000000000002,0.4506,2.6854,4.4527999999999999]
["b_ma1Nmx",3.0198,0.45540000000000003,2.1265999999999998,3.9129]
["b_ma2Nmx",3.1591999999999998,0.65439999999999998,1.8758999999999999,4.4424999999999999]
["b_ma3Nmx",2.2702,0.47839999999999999,1.3320000000000001,3.2084000000000001]
["b_ma4Nmx",2.9582000000000002,0.51939999999999997,1.9396,3.9767999999999999]
["b_mrNmx",-4.3299999999999996E-3,1.2700000000000001E-3,-6.8199999999999997E-3,-1.8400000000000001E-3]
["b_mi0Nmx",2.4291,0.94199999999999995,0.58179999999999998,4.2765000000000004]
["b_met1Nmx",-0.63819999999999999,9.7699999999999995E-2,-0.82979999999999998,-0.4466]
["b_met2Nmx",-0.54849999999999999,0.10539999999999999,-0.75529999999999997,-0.34179999999999999,null,null,null,null,null,null,"ØRUM TF-12 Tankforsuring "]
["b_Km0",3.6999999999999998E-2,0.27400000000000002,-0.50039999999999996,0.57430000000000003,null,null,null,null,null,null,null,"Beregn ammoniaktabet her"]
["b_sm1Km",9.74E-2,6.6600000000000006E-2,-3.3099999999999997E-2,0.22800000000000001]
["b_atKm",-4.0899999999999999E-2,4.6699999999999997E-3,-5.0099999999999999E-2,-3.1800000000000002E-2,null,null,null,null,null,null,null,null,null,null,null,null,null,null,null,null,null,null,null,null,null,"Jordfugtighed"]
["b_wsKm",-5.1700000000000003E-2,2.0299999999999999E-2,-9.1399999999999995E-2,-1.2E-2,null,null,null,null,null,null,null,null,null,null,null,null,null,null,null,null,null,null,null,null,null,null,null,null,null,null,"Pct. reduktion ved tankforsuring",55,"%"]
["b_mt1Km",1.3567,0.1018,1.1571,1.5563,null,null,null,null,null,null,null,null,null,null,null,null,null,null,null,null,null,null,null,null,null,"Tør","Våd"]
["b_mdmKm",0.16139999999999999,1.8100000000000002E-2,0.1258,0.19689999999999999,null,null,null,{"$f":"EXP(b_Nmx0 + b_sm1Nmx*I_SM1 + b_atNmx*AirTemp + b_wsNmx*WindSpeed + b_mt1Nmx*I_MT1 + b_mdmNmx*ManureDM + b_mtanNmx*ManureTAN + b_ma0Nmx*I_MA0 + b_ma1Nmx*I_MA1 + b_ma2Nmx*I_MA2 + b_ma3Nmx*I_MA3 + b_ma4Nmx*I_MA4 + b_mrNmx*ManureRate + b_mi0Nmx*I_MI0 + b_met1Nmx*I_MeT1 + b_met2Nmx*I_MeT2)","v":0.2553755684256338}]
["b_mtanKm",0.1011,4.9500000000000002E-2,4.0200000000000001E-3,0.1981,null,null,null,{"$f":" EXP(b_Km0 + b_sm1Km*I_SM1 + b_atKm*AirTemp + b_wsKm*WindSpeed + b_mt1Km*I_MT1 + b_mdmKm*ManureDM + b_mtanKm*ManureTAN + b_ma0Km*I_MA0 + b_ma1Km*I_MA1 + b_ma2Km*I_MA2 + b_ma3Km*I_MA3 + b_ma4Km*I_MA4 + b_mrKm*ManureRate + b_mi0Km*I_MI0 + b_met1Km*I_MeT1 + b_met2Km*I_MeT2)","v":5.6312981903347303},null,null,null,null,null,null,null,null,null,null,null,null,null,null,null,null,null,null,null,null,null,null,"Beregnet ammoniakfordampning",{"$f":"100*Nmax*Forsuring","v":25.537556842563379},"%"]
["b_ma0Km",0,null,null,null,null,null,null,{"$f":"Nmax*Km/(22:22 + Km)/(22:22 +23:23  + Km)","v":4.5349324399824406E-2},null,null,null,null,null,null,null,null,null,null,null,null,null,null,null,null,null,"Luft tempmperatur",null,null,null,null,"   -svarende til",{"$f":"J52","v":17.721731882129415},"kg N pr. ha"]
["b_ma1Km",0,null,null,null,null,null,null,null,null,null,null,null,null,null,null,null,null,null,null,null,null,null,null,null,null,null,null,{"$f":"I87","v":8},"°C"]
["b_ma2Km",0,null,null,null,null,null,null,null,null,null,null,null,null,null,null,null,null,null,null,null,null,null,null,null,null,null,null,null,null,null,"This is a prototype model presented at the NJF Seminar \"Sustainable Handling and Utilization of Livestock Manure from Animals to Plants\", Horsens, DK, 16-19 January 2001 by H.T. Søgaard et al. The model can be used freely without any charge but the authors disclaim all responsibility for the results derived by the model."]
["b_ma3Km",0]
["b_ma4Km",0,null,null,null,null,null,null,null,null,null,null,null,null,null,null,null,null,null,null,null,null,null,null,null,null,"Vindhastighed"]
["b_mrKm",1.7500000000000002E-2,2.5000000000000001E-3,1.26E-2,2.24E-2,null,null,null,null,null,null,null,null,null,null,null,null,null,null,null,null,null,null,null,null,null,null,null,{"$f":"I88","v":5},"m/s"]
["b_mi0Km",0]
["b_met1Km",0.38879999999999998,0.17610000000000001,4.3400000000000001E-2,0.73429999999999995,null,null,0,{"$f":"100*Nmax*H$37:H$65536/(H$37:H$65536+Km)","v":0},{"$f":"ManureTAN*ManureRate*I37/100","v":0}]
["b_met2Km",0.70240000000000002,0.19220000000000001,0.3256,1.0792999999999999,null,null,1,{"$f":"(100*Nmax*H$37:H$65536/(H$37:H$65536+Km))*Forsuring","v":3.851064468761932},{"$f":"(ManureTAN*ManureRate*I38/100)*Forsuring","v":2.7727664175085907},null,null,null,null,null,null,null,null,null,null,null,null,null,null,null,null,"Gylletype"]
[null,null,null,null,null,null,null,2,6.6928473257426804,4.8188500745347298]
[null,null,null,null,null,null,null,3,8.8761468829197092,6.390825755702191,null,null,null,null,null,null,null,null,null,null,null,null,null,null,null,null,"Kvæg","Svin"]
[null,null,null,null,null,null,null,4,10.606070474774008,7.6363707418372861]
[null,null,null,null,null,null,null,6,13.17353734277968,9.4849468868013691]
[null,null,null,null,null,null,null,8,14.987600732362104,10.791072527300715,null,null,null,null,null,null,null,null,null,null,null,null,null,null,null,null,"Tørstofindhold"]
[null,null,null,null,null,null,null,10,16.33745101117319,11.762964728044697,null,null,null,null,null,null,null,null,null,null,null,null,null,null,null,null,null,null,{"$f":"I90","v":5},"%"]
[null,null,null,null,null,null,null,15,18.567098837139909,13.368311162740733]
[null,null,null,null,null,null,null,20,19.926853999297858,14.347334879494458]
[null,null,null,null,null,null,null,30,21.501509745292392,15.481087016610523,null,null,null,null,null,null,null,null,null,null,null,null,null,null,null,null,"Kvælstofindhold i gylle (kg NH4-N pr. ton)"]
[null,null,null,null,null,null,null,40,22.386000710339243,16.117920511444254,null,null,null,null,null,null,null,null,null,null,null,null,null,null,null,null,null,null,{"$f":"I91","v":2.4},"kg NH4-N/ton"]
[null,null,null,null,null,null,null,50,22.952508455932655,16.525806088271512]
[null,null,null,null,null,null,null,75,23.75401123607163,17.102888089971572]
[null,null,null,null,null,null,null,100,24.176127038169895,17.406811467482324,null,null,null,null,null,null,null,null,null,null,null,null,null,null,null,null,"Teknik "]
[null,null,null,null,null,null,null,150,24.613516502957523,17.721731882129415]
[null,null,null,null,null,null,null,null,null,null,null,null,null,null,null,null,null,null,null,null,null,null,null,null,null,null,{"$f":"IF(P92=1,\"Bredspredning\",IF(P92=2,\"Slangeudlægning\",IF(P92=3,\"Båndudlægning\",IF(P92=4,\"Nedf.åben v-rende\", IF(P92=5,\"Slæbesko\",\"Lukket nedfældning\")))))","v":"Slangeudlægning"}]
[]
[]
[null,null,null,null,null,null,null,0,{"$f":"100*Nmax*Forsuring","v":25.537556842563379},null,null,null,null,null,null,null,null,null,null,null,null,null,null,null,null,null,"Udbragt mængde"]
[null,null,null,null,null,null,null,150,{"$f":"100*Nmax*Forsuring","v":25.537556842563379},null,null,null,null,null,null,null,null,null,null,null,null,null,null,null,null,null,null,null,{"$f":"I97","v":30},"t/ha"]
[]
[]
[null,null,null,null,null,null,null,0,{"$f":"50*Nmax*Forsuring","v":12.76877842128169},null,null,null,null,null,null,null,null,null,null,null,null,null,null,null,null,null,"Nedharvning eller nedpløjning"]
[null,null,null,null,null,null,null,{"$f":"Km","v":5.6312981903347303},{"$f":"50*Nmax*Forsuring","v":12.76877842128169}]
[null,null,null,null,null,null,null,{"$f":"Km","v":5.6312981903347303},0,null,null,null,null,null,null,null,null,null,null,null,null,null,null,null,null,null,"Nej","Ja"]
[]
[null,null,null,null,null,null,null,null,null,null,null,null,null,null,null,null,null,null,null,null,null,null,null,null,null,null,"Tankforsuring"]
[]
[null,null,null,null,null,null,null,null,null,null,null,null,null,null,null,null,null,null,null,null,null,null,null,null,null,null,"Nej","Ja"]
[]
[]
[]
[]
[]
[]
[]
[]
[]
[]
[]
[null,null,null,null,null,null,null,null,null,null,null,null,null,{"$f":"Forsuring","v":1}]
[]
[]
[]
[]
[]
[]
[null,null,null,null,null,null,null,null,"Value"]
[null,null,null,null,null,null,null,null,{"$f":"IF(P86,1,0)","v":0},null,"= 1 if SoilMoist = 1 (SoilMoist = 2 is ref.)",null,null,null,null,false]
[null,null,null,null,null,null,null,null,{"$f":"P87-6","v":8},null,null,null,null,null,null,14,null,null,null,null,null,null,null,null,null,null,"Måleteknik"]
[null,null,null,null,null,null,null,null,5]
[null,null,null,null,null,null,null,null,{"$f":"IF(P89,1,0)","v":0},null,"= 1 if ManureType = 1 (ManureType = 2 is ref.)",null,null,null,null,false,null,null,null,null,null,null,null,null,null,null,{"$f":"IF(P99=1,\"Vind tunneller\",IF(P99=2,\"Micromet. mass balance\",\"Lennart boxes (dyn. chambers)\"))","v":"Micromet. mass balance"}]
[null,null,null,null,null,null,null,null,5]
[null,null,null,null,null,null,null,null,{"$f":"P91/10","v":2.4},null,null,null,null,null,null,24]
[null,null,null,null,null,null,null,null,{"$f":"IF(P92=1,1,0)","v":0},null,"= 1 if ManureAppl = 0 (ManureAppl = 5 is ref.)",null,null,null,null,2]
[null,null,null,null,null,null,null,null,{"$f":"IF(P92=2,1,0)","v":1},null,"= 1 if ManureAppl = 1 (ManureAppl = 5 is ref.)"]
[null,null,null,null,null,null,null,null,{"$f":"IF(P92=3,1,0)","v":0},null,"= 1 if ManureAppl = 2 (ManureAppl = 5 is ref.)"]
[null,null,null,null,null,null,null,null,{"$f":"IF(P92=4,1,0)","v":0},null,"= 1 if ManureAppl = 3 (ManureAppl = 5 is ref.)"]
[null,null,null,null,null,null,null,null,{"$f":"IF(P92=5,1,0)","v":0},null,"= 1 if ManureAppl = 4 (ManureAppl = 5 is ref.)"]
[null,null,null,null,null,null,null,null,30]
[null,null,null,null,null,null,null,null,{"$f":"IF(P98,1,0)","v":1},null,"= 1 if ManureInc = 0 (ManureInc = 2 is ref.)",null,null,null,null,true]
[null,null,null,null,null,null,null,null,{"$f":"IF(P99=1,1,0)","v":0},null,"= 1 if MeasTech = 1 (MeasTech = 3 is ref.)",null,null,null,null,2]
[null,null,null,null,null,null,null,null,{"$f":"IF(P99=2,1,0)","v":1},null,"= 1 if MeasTech = 2 (MeasTech = 3 is ref.)"]
[null,null,null,null,null,null,null,null,0]
[null,null,null,null,null,null,null,null,6]
[]
[null,null,null,null,null,null,null,null,{"$f":"IF(P104,1,(100-AG26)/100)","v":1},null,null,null,null,null,null,true]

{"sheet":"Sheet2","index":1,"n_rows":0,"n_cols":0,"rows_kept":0,"cut":false,"hidden":false,"merged":[]}

{"sheet":"Sheet3","index":2,"n_rows":0,"n_cols":0,"rows_kept":0,"cut":false,"hidden":false,"merged":[]}